bitfinex/quotes_SOLUSD_20240705
["timestamp","ask_amount","ask_price","bid_price","bid_amount"]
[1720154493179,20.17,126.42,126.36,0.860762]
[1720154493481,7.912,126.39,126.36,0.860762]
[1720154493682,7.9132,126.37,126.36,0.860762]
[1720154493981,24.82554037,126.41,126.36,0.860762]
[1720154494169,0.17,126.42,126.36,0.860762]
[1720154494370,20.17,126.42,126.36,0.860762]
[1720154494579,8.0802,126.42,126.36,0.860762]
[1720154494880,7.911,126.41,126.36,0.860762]
[1720154495082,7.9087,126.45,126.36,0.860762]
[1720154495286,44.59024037,126.49,126.36,0.860762]
[1720154495970,7.9093,126.44,126.36,0.860762]
[1720154496283,7.9101,126.42,126.36,0.860762]
[1720154496478,44.59764037,126.45,126.36,0.860762]
[1720154496685,7.9114,126.4,126.36,0.860762]
[1720154496870,7.9122,126.39,126.36,0.860762]
[1720154497065,7.9115,126.4,126.36,0.860762]
[1720154497376,8.0812,126.41,126.36,0.860762]
[1720154497983,0.17,126.41,126.36,0.860762]
[1720154498175,7.9109,126.41,126.36,0.860762]
[1720154498898,7.9096,126.43,126.36,0.860762]
[1720154499189,24.82554037,126.47,126.37,6.5573]
[1720154499369,25.08038878,126.48,126.37,6.5573]
[1720154499567,7.9093,126.44,126.37,6.5573]
[1720154499782,7.9095,126.43,126.37,6.5573]
[1720154499984,7.909,126.44,126.37,6.5573]
[1720154500367,7.9095,126.43,126.37,6.5573]
[1720154500879,19.7699,126.46,126.37,6.5573]
[1720154501067,7.9108,126.41,126.37,6.5573]
[1720154501268,19.7699,126.46,126.37,6.5573]
[1720154501472,0.17,126.45,126.37,6.5573]
[1720154502394,7.9097,126.43,126.37,6.5573]
[1720154502978,7.9103,126.42,126.37,6.5573]
[1720154503180,0.17,126.45,126.37,6.5573]
[1720154503181,0.17,126.43,126.37,6.5573]
[1720154503383,7.9102,126.42,126.37,6.5573]
[1720154504096,7.9109,126.41,126.37,6.5573]
[1720154504479,7.9113,126.4,126.37,6.5573]
[1720154504701,0.17,126.43,126.37,6.5573]
[1720154504873,7.9109,126.41,126.37,6.5573]
[1720154505190,8.0803,126.42,126.37,6.5573]
[1720154505390,0.17,126.41,126.37,6.5573]
[1720154505573,8.0808,126.41,126.37,6.5573]
[1720154505773,2.23716758,139.32,126.37,6.5573]
[1720154505774,39.7665,126.48,126.37,6.5573]
[1720154506005,7.9083,126.45,126.37,6.5573]
[1720154506182,7.9077,126.46,126.37,6.5573]
[1720154506511,7.9071,126.47,126.37,6.5573]
[1720154506998,24.82554037,126.48,126.37,6.5573]
[1720154507213,7.909,126.44,126.37,6.5573]
[1720154507907,24.82554037,126.48,126.37,6.5573]
[1720154508207,7.91,126.43,126.37,6.5573]
[1720154508373,19.9385,126.47,126.37,6.5573]
[1720154508574,7.9083,126.45,126.37,6.5573]
[1720154509003,7.9077,126.46,126.37,6.5573]
[1720154509377,7.9064,126.48,126.37,6.5573]
[1720154509596,7.9064,126.48,126.38,16.281]
[1720154510105,24.82554037,126.52,126.38,16.281]
[1720154510312,7.9077,126.46,126.38,16.111]
[1720154510608,7.9074,126.47,126.38,16.111]
[1720154510814,8.0765,126.48,126.38,16.111]
[1720154511512,7.907,126.47,126.38,16.111]
[1720154511680,0.17,126.48,126.38,16.111]
[1720154511886,8.0765,126.48,126.38,16.111]
[1720154512113,7.9071,126.47,126.38,16.111]
[1720154512483,8.0764,126.48,126.38,16.111]
[1720154512814,7.9064,126.48,126.38,16.111]
[1720154513488,7.9059,126.49,126.38,16.111]
[1720154513907,7.9065,126.48,126.38,16.111]
[1720154514308,7.907,126.47,126.38,16.111]
[1720154514519,7.9064,126.48,126.38,16.111]
[1720154514817,0.17,126.49,126.38,16.111]
[1720154515116,19.7526,126.57,126.41,39.1009]
[1720154515282,19.7526,126.57,126.42,66.7591]
[1720154515483,7.9037,126.53,126.42,66.7591]
[1720154515683,7.9027,126.54,126.42,66.7591]
[1720154515914,19.7526,126.57,126.42,90.5591]
[1720154516199,7.9031,126.54,126.44,15.3009]
[1720154516582,24.82554037,126.58,126.44,15.3009]
[1720154516784,44.58474037,126.53,126.44,15.3009]
[1720154517004,7.9064,126.48,126.44,15.3009]
[1720154517204,24.82554037,126.52,126.44,15.027]
[1720154517519,100.0,126.54,126.42,6.1091]
[1720154517520,20.17,126.51,126.42,6.1091]
[1720154517716,7.907,126.47,126.42,6.1091]
[1720154517892,7.9063,126.49,126.42,6.1091]
[1720154518095,0.17,126.51,126.42,6.1091]
[1720154518427,7.9058,126.49,126.42,6.1091]
[1720154518590,7.9052,126.5,126.42,6.1091]
[1720154518911,0.17,126.49,126.42,6.1091]
[1720154519086,7.9064,126.48,126.42,6.1091]
[1720154519288,0.17,126.49,126.42,6.1091]
[1720154519604,7.9053,126.5,126.42,6.1091]
[1720154519903,7.9059,126.49,126.42,6.1091]
[1720154520087,7.9052,126.5,126.43,16.1559]
[1720154520294,0.17,126.51,126.43,16.1559]
[1720154520493,7.905,126.51,126.43,16.1559]
[1720154520716,27.9031,126.54,126.43,16.1559]
[1720154521017,7.9046,126.51,126.43,16.1559]
[1720154521334,7.9037,126.53,126.43,16.1559]
[1720154521518,7.9038,126.52,126.43,16.1559]
[1720154521812,7.9033,126.53,126.43,16.1559]
[1720154522118,7.9038,126.53,126.43,16.1559]
[1720154522493,7.904,126.52,126.43,16.1559]
[1720154522910,7.9033,126.53,126.43,16.1559]
[1720154523117,1.82675954,126.58,126.45,6.6466]
[1720154523290,7.9007,126.57,126.45,6.6466]
[1720154523494,7.9,126.59,126.46,20.17]
[1720154523694,19.7449,126.62,126.47,15.8285]
[1720154523914,7.8996,126.59,126.48,6.8166]
[1720154524123,19.7449,126.62,126.48,6.8166]
[1720154524124,24.82554037,126.68,126.5,30.4466]
[1720154524417,24.82554037,126.68,126.52,22.4751]
[1720154524418,7.8974,126.63,126.52,22.4751]
[1720154524586,7.8965,126.64,126.53,0.17]
[1720154524983,24.82554037,126.66,126.52,22.4751]
[1720154525204,25.06932297,126.68,126.52,22.4751]
[1720154525403,7.8969,126.64,126.53,0.17]
[1720154525712,7.8958,126.65,126.53,0.17]
[1720154526025,0.1,126.69,126.56,22.0828]
[1720154526229,7.8946,126.67,126.56,22.0828]
[1720154526535,7.8952,126.66,126.56,22.0828]
[1720154527197,7.8946,126.67,126.56,22.0828]
[1720154527430,0.1,126.69,126.56,22.0828]
[1720154527431,7.8952,126.66,126.56,22.0828]
[1720154527805,7.8944,126.68,126.56,22.0828]
[1720154528228,7.8945,126.67,126.56,22.0828]
[1720154528730,0.1,126.69,126.56,22.0828]
[1720154528731,7.894,126.68,126.56,22.0828]
[1720154529044,0.1,126.69,126.56,22.0828]
[1720154529837,7.8945,126.67,126.57,0.17]
[1720154530313,0.1,126.69,126.57,0.17]
[1720154530503,0.1,126.69,126.59,40.65]
[1720154530705,0.1,126.69,126.6,0.17]
[1720154530928,0.1,126.69,126.61,22.8196]
[1720154531436,7.8903,126.74,126.63,16.0576]
[1720154531932,0.1,126.79,126.63,80.5076]
[1720154532114,0.1,126.79,126.67,23.9516]
[1720154532305,0.1,126.79,126.66,40.65]
[1720154532306,0.1,126.79,126.7,40.65]
[1720154532505,0.1,126.79,126.71,20.17]
[1720154532916,0.1,126.79,126.71,20.0]
[1720154533712,0.1,126.79,126.69,22.8196]
[1720154533910,7.9875,126.79,126.69,22.8196]
[1720154534114,0.1,126.79,126.69,22.8196]
[1720154534309,7.8881,126.78,126.69,22.8196]
[1720154534512,0.1,126.79,126.69,22.8196]
[1720154534713,7.8883,126.77,126.69,22.8196]
[1720154534943,0.17,126.76,126.69,22.8196]
[1720154535135,7.8886,126.77,126.69,22.8196]
[1720154535431,0.1,126.79,126.69,22.8196]
[1720154535432,0.17,126.76,126.69,22.8196]
[1720154536115,0.1,126.79,126.69,22.8196]
[1720154537634,7.987,126.79,126.69,22.8196]
[1720154537813,7.8916,126.72,126.69,22.8196]
[1720154538020,7.8908,126.73,126.69,22.8196]
[1720154538236,7.8906,126.74,126.69,6.762]
[1720154538537,7.892,126.71,126.64,21.9475]
[1720154539106,0.17,126.72,126.64,21.9475]
[1720154539308,0.17,126.72,126.6,40.65]
[1720154539309,44.99554037,126.73,126.6,6.63]
[1720154539518,19.7296,126.72,126.6,6.63]
[1720154539734,0.17,126.71,126.61,1.40083722]
[1720154539948,0.17,126.71,126.6,6.63]
[1720154540118,7.8938,126.69,126.6,6.63]
[1720154540315,0.17,126.71,126.6,6.63]
[1720154540628,7.8927,126.7,126.6,6.63]
[1720154540824,0.17,126.69,126.6,6.63]
[1720154541026,7.8944,126.68,126.6,6.63]
[1720154541230,8.0633,126.69,126.6,6.63]
[1720154541442,7.8939,126.68,126.6,6.63]
[1720154541623,0.17,126.67,126.6,6.63]
[1720154542028,7.8927,126.7,126.6,6.63]
[1720154542439,0.17,126.69,126.6,6.63]
[1720154542754,8.0634,126.69,126.6,6.63]
[1720154543046,44.82554037,126.68,126.6,6.63]
[1720154543345,7.8964,126.64,126.6,6.63]
[1720154543525,8.0659,126.65,126.6,6.63]
[1720154543892,0.17,126.64,126.59,16.3179]
[1720154545721,7.8946,126.67,126.59,16.3179]
[1720154545922,0.17,126.66,126.59,16.3179]
[1720154546150,8.0653,126.66,126.59,16.3179]
[1720154546327,0.17,126.66,126.59,16.3179]
[1720154546531,7.8959,126.65,126.59,16.3179]
[1720154546734,0.17,126.64,126.59,16.3179]
[1720154547240,5.61363516,126.71,126.59,16.3179]
[1720154547559,7.8923,126.71,126.59,16.3179]
[1720154547761,26.0329,126.76,126.59,16.3179]
[1720154547969,16.9755,126.77,126.61,6.5942]
[1720154548147,7.8925,126.71,126.61,6.5942]
[1720154548358,59.1636,126.77,126.61,6.5942]
[1720154548690,1.82675954,126.76,126.61,6.5942]
[1720154548973,19.7296,126.72,126.61,6.5942]
[1720154549144,100.0,126.75,126.61,6.5942]
[1720154549145,19.7246,126.75,126.61,6.5942]
[1720154549768,7.8927,126.7,126.61,6.5942]
[1720154549958,7.8935,126.69,126.61,6.5942]
[1720154550268,39.4542,126.73,126.61,6.5942]
[1720154550470,120.0,126.72,126.61,6.5942]
[1720154550642,7.8951,126.66,126.61,6.5942]
[1720154550851,0.17,126.65,126.61,6.5942]
[1720154551293,7.897,126.63,126.59,16.3179]
[1720154551453,0.17,126.65,126.59,16.3179]
[1720154551651,7.8964,126.64,126.59,16.3179]
[1720154551852,0.17,126.63,126.59,16.3179]
[1720154552145,56.139,126.72,126.59,16.3179]
[1720154552346,7.8978,126.62,126.51,12.19309155]
[1720154552576,6.7297,126.66,126.51,6.7674]
[1720154552876,7.899,126.6,126.51,6.7674]
[1720154553180,7.8995,126.59,126.51,6.7674]
[1720154553482,49.48,126.64,126.51,6.7674]
[1720154553651,7.9,126.59,126.51,6.7674]
[1720154554180,8.0702,126.58,126.51,6.7674]
[1720154554479,7.897,126.63,126.51,6.7674]
[1720154554774,49.48,126.68,126.51,6.7674]
[1720154554775,7.8983,126.61,126.51,6.7674]
[1720154554941,19.7406,126.65,126.51,6.7674]
[1720154554942,7.8989,126.6,126.51,6.7674]
[1720154555142,7.898,126.62,126.51,6.7674]
[1720154555343,7.8977,126.62,126.51,6.7674]
[1720154555574,7.8985,126.61,126.51,6.7674]
[1720154555746,7.8993,126.6,126.51,6.7674]
[1720154556976,39.4757,126.67,126.51,6.7674]
[1720154557273,39.4757,126.67,126.52,0.17]
[1720154557577,39.4757,126.67,126.51,6.7674]
[1720154557881,19.7448,126.62,126.51,6.7674]
[1720154558048,7.9002,126.58,126.51,6.7674]
[1720154558255,7.9001,126.58,126.51,6.7674]
[1720154558856,19.7448,126.62,126.51,6.7674]
[1720154559077,7.9015,126.56,126.51,6.7674]
[1720154559284,7.9038,126.52,126.51,6.7674]
[1720154559575,7.9026,126.55,126.51,6.7674]
[1720154559777,7.9029,126.54,126.51,6.7674]
[1720154560576,0.17,126.57,126.51,6.7674]
[1720154560872,7.9028,126.54,126.51,6.7674]
[1720154561269,7.9034,126.53,126.51,6.7674]
[1720154561582,7.9045,126.51,126.5,80.0]
[1720154561755,7.904,126.52,126.5,80.0]
[1720154562079,7.9027,126.54,126.5,80.0]
[1720154562377,7.9005,126.58,126.5,80.0]
[1720154562774,7.899,126.6,126.51,22.1049]
[1720154562981,5.56521282,126.63,126.51,22.1049]
[1720154563285,19.7516,126.58,126.51,22.1049]
[1720154563460,7.902,126.55,126.51,22.1049]
[1720154563782,7.9015,126.56,126.51,22.1049]
[1720154564081,7.9021,126.55,126.51,22.1049]
[1720154564280,7.902,126.55,126.51,22.1049]
[1720154564451,19.7516,126.58,126.51,22.1049]
[1720154564655,7.902,126.55,126.51,22.1049]
[1720154565250,7.9027,126.54,126.51,22.1049]
[1720154565585,7.9033,126.53,126.51,22.1049]
[1720154565765,19.9242,126.56,126.5,80.0]
[1720154565965,7.9045,126.51,126.5,80.0]
[1720154566169,7.9037,126.53,126.5,80.0]
[1720154566484,7.904,126.52,126.5,80.0]
[1720154566673,7.9045,126.51,126.5,80.0]
[1720154566973,7.9039,126.52,126.5,80.0]
[1720154567176,19.7542,126.56,126.5,80.0]
[1720154567392,7.904,126.52,126.5,80.0]
[1720154567952,7.9025,126.55,126.5,80.0]
[1720154568262,7.9027,126.54,126.5,80.0]
[1720154568669,19.7528,126.57,126.5,80.0]
[1720154568973,0.17,126.56,126.5,80.0]
[1720154569272,7.9039,126.52,126.5,80.0]
[1720154570569,7.9033,126.53,126.5,80.0]
[1720154570774,0.17,126.56,126.5,80.0]
[1720154570775,7.9027,126.54,126.5,80.0]
[1720154570980,7.9035,126.53,126.5,80.0]
[1720154571297,7.9045,126.51,126.5,80.0]
[1720154571777,0.17,126.56,126.5,80.0]
[1720154571981,7.9026,126.54,126.5,80.0]
[1720154572286,7.9015,126.56,126.5,103.7487]
[1720154572856,7.9027,126.54,126.5,103.7487]
[1720154573279,5.60600886,126.6,126.5,103.7487]
[1720154573585,21.1543,126.66,126.5,103.7487]
[1720154573906,7.8983,126.61,126.5,103.7487]
[1720154574069,7.899,126.6,126.5,103.7487]
[1720154574266,7.8996,126.59,126.5,103.7487]
[1720154574472,111.75316115,126.66,126.5,103.7487]
[1720154574473,39.4852,126.63,126.5,103.7487]
[1720154574876,7.9009,126.57,126.5,103.7487]
[1720154575064,7.9002,126.58,126.5,103.7487]
[1720154575462,19.7499,126.59,126.5,103.7487]
[1720154575674,7.902,126.56,126.5,103.7487]
[1720154575881,7.9002,126.58,126.5,103.7487]
[1720154576086,7.8995,126.59,126.5,103.7487]
[1720154576387,19.7396,126.65,126.5,103.7487]
[1720154576562,5.43902083,126.67,126.52,6.7806]
[1720154576762,19.7352,126.68,126.53,36.8133]
[1720154577089,7.897,126.63,126.53,36.8133]
[1720154577268,19.7352,126.68,126.53,36.8133]
[1720154577586,7.8989,126.6,126.53,36.6433]
[1720154577789,39.476,126.66,126.53,16.6433]
[1720154578095,19.7417,126.64,126.53,16.6433]
[1720154578395,7.8995,126.59,126.53,16.6433]
[1720154579078,7.899,126.6,126.53,16.6433]
[1720154579266,7.8996,126.59,126.53,16.6433]
[1720154579467,7.8989,126.6,126.53,16.6433]
[1720154580377,19.7367,126.67,126.53,16.6433]
[1720154580965,59.4759,126.66,126.53,16.6433]
[1720154581192,7.9019,126.56,126.53,16.6433]
[1720154581492,7.9025,126.55,126.52,6.7806]
[1720154581878,7.9023,126.55,126.52,6.7806]
[1720154582593,7.9015,126.56,126.52,6.7806]
[1720154582782,7.9007,126.58,126.52,6.7806]
[1720154583095,0.17,126.61,126.52,6.7806]
[1720154583309,7.8983,126.61,126.52,6.7806]
[1720154583471,5.38816337,126.64,126.52,6.7806]
[1720154583797,19.7403,126.65,126.52,6.7806]
[1720154584002,19.7403,126.65,126.53,16.6343]
[1720154584166,19.7357,126.68,126.53,16.8043]
[1720154584500,7.8996,126.59,126.53,16.6343]
[1720154584672,19.7413,126.64,126.53,16.6343]
[1720154585199,7.8978,126.62,126.53,16.6343]
[1720154585387,19.7413,126.64,126.53,16.6343]
[1720154585700,19.745,126.62,126.53,16.6343]
[1720154585871,0.17,126.61,126.53,16.6343]
[1720154586068,7.9006,126.58,126.53,16.6343]
[1720154586304,0.17,126.61,126.53,16.6343]
[1720154586482,7.8984,126.61,126.53,16.6343]
[1720154586676,7.8989,126.6,126.53,16.6343]
[1720154587381,0.17,126.62,126.53,16.6343]
[1720154587584,7.8989,126.6,126.53,16.6343]
[1720154588197,5.55070352,126.67,126.53,16.6343]
[1720154588401,19.7338,126.69,126.53,16.6343]
[1720154588592,46.5136,126.74,126.57,16.7558]
[1720154588935,7.8946,126.67,126.57,16.7558]
[1720154589200,7.8953,126.66,126.57,16.7558]
[1720154589405,7.8958,126.65,126.57,16.7558]
[1720154589788,7.8953,126.66,126.57,16.7558]
[1720154590008,7.8946,126.67,126.57,16.7558]
[1720154590299,52.12739939,126.74,126.6,16.0079]
[1720154590300,5.61379939,126.74,126.6,16.0079]
[1720154590512,7.8924,126.71,126.6,16.0079]
[1720154590684,7.8924,126.71,126.61,0.17]
[1720154590882,7.8926,126.7,126.61,0.17]
[1720154591080,7.8935,126.69,126.6,16.0079]
[1720154591311,7.8943,126.68,126.6,16.0079]
[1720154591600,7.8951,126.67,126.6,16.0079]
[1720154591790,7.8951,126.66,126.6,16.0079]
[1720154592105,7.8939,126.68,126.6,16.0079]
[1720154592302,7.8946,126.67,126.6,16.0079]
[1720154592681,100.0,126.71,126.6,16.0079]
[1720154593008,19.7378,126.67,126.6,16.0079]
[1720154593204,7.8983,126.61,126.56,17.1339]
[1720154593403,0.17,126.66,126.56,17.1339]
[1720154594108,7.8977,126.62,126.56,17.1339]
[1720154594304,7.8971,126.63,126.56,17.1339]
[1720154594608,7.8963,126.65,126.56,17.1339]
[1720154594794,7.8965,126.64,126.56,17.1339]
[1720154594986,7.8972,126.63,126.56,17.1339]
[1720154595310,0.17,126.66,126.56,17.1339]
[1720154595311,7.8977,126.62,126.56,17.1339]
[1720154595686,7.8983,126.61,126.56,17.1339]
[1720154596077,7.8977,126.62,126.56,17.1339]
[1720154596694,19.74,126.65,126.56,17.1339]
[1720154596897,0.17,126.64,126.56,17.1339]
[1720154597414,25.27661774,126.68,126.56,17.1339]
[1720154597593,7.8958,126.65,126.56,17.1339]
[1720154597910,7.8951,126.66,126.56,17.1339]
[1720154598312,7.8959,126.65,126.56,17.1339]
[1720154598485,7.8945,126.67,126.56,17.1339]
[1720154598789,7.8954,126.66,126.56,17.1339]
[1720154598993,19.7337,126.69,126.56,17.1339]
[1720154599324,19.7374,126.67,126.56,17.1339]
[1720154599482,7.8978,126.62,126.56,17.1339]
[1720154600093,7.8966,126.64,126.56,17.1339]
[1720154600297,7.897,126.63,126.56,17.1339]
[1720154600497,7.8977,126.62,126.56,17.1339]
[1720154600720,0.17,126.65,126.56,17.1339]
[1720154601007,7.8959,126.65,126.56,17.1339]
[1720154601311,7.8952,126.66,126.56,17.1339]
[1720154601517,139.4661,126.7,126.56,17.1339]
[1720154601702,7.8982,126.61,126.56,17.1339]
[1720154601903,7.8975,126.63,126.56,17.1339]
[1720154602216,7.8978,126.62,126.56,17.1339]
[1720154602418,19.7383,126.66,126.56,17.1339]
[1720154602419,7.8989,126.6,126.56,17.1339]
[1720154602604,7.8996,126.59,126.56,17.1339]
[1720154603294,7.899,126.6,126.56,17.1339]
[1720154603494,0.17,126.61,126.55,6.9245]
[1720154603701,0.17,126.61,126.51,23.3162]
[1720154603932,19.7478,126.6,126.51,23.3162]
[1720154604116,7.9002,126.58,126.51,23.3162]
[1720154604318,0.17,126.59,126.51,23.3162]
[1720154604696,8.0699,126.59,126.51,23.3162]
[1720154604897,0.17,126.59,126.51,23.3162]
[1720154605316,7.9002,126.58,126.51,23.3162]
[1720154605818,7.9008,126.57,126.51,23.3162]
[1720154606999,7.9003,126.58,126.51,23.3162]
[1720154607207,8.0697,126.59,126.51,23.3162]
[1720154607398,7.9002,126.58,126.51,23.3162]
[1720154608521,0.17,126.59,126.51,23.3162]
[1720154608710,7.899,126.6,126.51,23.3162]
[1720154609420,25.20927559,126.64,126.51,23.3162]
[1720154609620,7.898,126.62,126.51,23.3162]
[1720154609794,7.898,126.62,126.52,0.17]
[1720154609990,7.8962,126.65,126.52,28.0738]
[1720154610191,25.37956767,126.67,126.52,28.0738]
[1720154610192,29.7957122,126.7,126.53,24.8187]
[1720154610406,29.7957122,126.7,126.54,0.17]
[1720154610407,19.7323,126.7,126.54,0.17]
[1720154610615,7.8958,126.65,126.54,0.17]
[1720154610820,127.6263122,126.73,126.55,24.2131]
[1720154610821,7.8934,126.69,126.55,24.2131]
[1720154611007,19.7269,126.73,126.58,6.7835]
[1720154611208,7.8896,126.75,126.61,31.6982]
[1720154611427,39.23507552,126.79,126.63,17.2537]
[1720154611607,7.8895,126.76,126.63,17.2537]
[1720154611810,19.8181,126.79,126.64,7.1516]
[1720154612301,7.8883,126.77,126.64,7.1516]
[1720154612500,0.1,126.79,126.64,7.1516]
[1720154612701,5.66082367,126.79,126.64,7.1516]
[1720154612916,0.1,126.79,126.64,7.1516]
[1720154613503,7.889,126.76,126.64,7.1516]
[1720154613717,0.17,126.75,126.64,7.1516]
[1720154614800,0.1,126.79,126.65,16.5709]
[1720154614801,7.8883,126.77,126.65,16.5709]
[1720154615015,7.8882,126.78,126.65,16.5709]
[1720154615213,7.9871,126.79,126.65,16.5709]
[1720154615407,7.9871,126.79,126.66,0.17]
[1720154615706,0.1,126.79,126.69,24.1797]
[1720154615920,0.1,126.79,126.7,0.17]
[1720154616827,0.1,126.79,126.69,24.1797]
[1720154617925,0.1,126.79,126.7,0.17]
[1720154618304,0.1,126.79,126.7,20.17]
[1720154618904,0.1,126.79,126.71,17.1298]
[1720154619915,7.9871,126.79,126.71,17.1298]
[1720154620112,0.1,126.79,126.71,17.1298]
[1720154620308,8.1576,126.79,126.71,17.1298]
[1720154620526,0.27,126.79,126.71,17.1298]
[1720154620829,0.1,126.79,126.71,17.1298]
[1720154621206,0.1,126.79,126.71,25.0217]
[1720154621405,0.1,126.79,126.72,0.17]
[1720154622234,0.1,126.79,126.71,17.1298]
[1720154625619,0.1,126.79,126.72,7.8909]
[1720154625835,0.1,126.79,126.73,20.17]
[1720154626142,7.882,126.88,126.75,16.3653]
[1720154626349,7.8821,126.87,126.76,0.17]
[1720154626511,0.1,126.89,126.76,0.17]
[1720154626712,0.1,126.89,126.75,16.3653]
[1720154626713,7.8827,126.86,126.75,16.3653]
[1720154626941,105.68975277,126.89,126.75,16.3653]
[1720154627110,7.8859,126.81,126.75,16.3653]
[1720154627306,7.8872,126.79,126.72,6.6112]
[1720154627538,19.7091,126.85,126.72,6.6112]
[1720154628053,7.8847,126.83,126.72,6.6112]
[1720154628210,8.0551,126.82,126.72,6.6112]
[1720154628406,7.8851,126.82,126.72,6.6112]
[1720154628633,0.17,126.81,126.72,6.6112]
[1720154628943,129.50475112,126.89,126.72,6.6112]
[1720154629106,7.8838,126.85,126.72,6.6112]
[1720154629307,7.8828,126.86,126.73,16.8111]
[1720154629529,19.8034,126.89,126.73,24.7017]
[1720154629844,7.8822,126.87,126.73,24.7017]
[1720154630046,7.981,126.89,126.75,14.7378]
[1720154630209,7.882,126.88,126.75,6.8483]
[1720154630531,7.882,126.88,126.76,0.17]
[1720154630735,7.8821,126.87,126.75,6.8483]
[1720154630958,7.8827,126.86,126.75,6.8483]
[1720154631231,7.8828,126.86,126.75,6.8483]
[1720154631612,8.0533,126.85,126.75,6.8483]
[1720154631813,7.8833,126.85,126.75,6.8483]
[1720154632215,0.17,126.87,126.75,6.8483]
[1720154632614,8.052,126.87,126.75,6.8483]
[1720154633914,7.8829,126.86,126.75,6.8483]
[1720154634119,0.17,126.85,126.75,6.8483]
[1720154634714,7.8841,126.84,126.75,6.8483]
[1720154634914,7.8839,126.84,126.75,6.8483]
[1720154635134,0.17,126.85,126.75,6.8483]
[1720154635354,0.1,126.89,126.75,6.8483]
[1720154635511,0.27,126.89,126.75,6.8483]
[1720154635713,7.8821,126.87,126.75,6.8483]
[1720154635945,0.17,126.86,126.75,6.8483]
[1720154636333,0.17,126.87,126.75,6.8483]
[1720154636527,7.8816,126.88,126.75,6.8483]
[1720154636718,0.1,126.89,126.76,44.8738]
[1720154637043,0.860762,126.93,126.84,17.6024]
[1720154637247,0.860762,126.93,126.85,20.17]
[1720154637416,0.860762,126.93,126.86,7.183]
[1720154637613,0.860762,126.93,126.87,20.0]
[1720154640245,0.860762,127.05,126.97,6.5263]
[1720154642454,7.874,127.0,126.92,6.5946]
[1720154642620,7.8758,126.98,126.89,16.3368]
[1720154642819,100.860762,127.05,126.89,16.3368]
[1720154642820,7.8765,126.96,126.89,16.3368]
[1720154643057,19.682,127.02,126.89,16.3368]
[1720154643357,0.860762,127.05,126.89,16.3368]
[1720154643358,7.8741,127.0,126.89,16.3368]
[1720154643529,20.538262,127.05,126.89,16.3368]
[1720154643530,0.860762,127.05,126.89,24.2175]
[1720154643729,0.860762,127.05,126.9,55.9822]
[1720154643926,8.731662,127.05,126.91,27.5782]
[1720154644146,8.731662,127.05,126.9,55.9822]
[1720154644147,7.8717,127.04,126.9,55.9822]
[1720154644325,7.8723,127.03,126.91,20.0]
[1720154644663,0.860762,127.05,126.91,20.0]
[1720154644842,19.679,127.04,126.9,6.6222]
[1720154645151,7.8739,127.01,126.9,6.6222]
[1720154645453,7.8733,127.02,126.9,6.6222]
[1720154646141,0.17,127.03,126.9,6.6222]